bitfinex-derivatives/quotes_SOLF0:USTF0_20250830
["timestamp","ask_amount","ask_price","bid_price","bid_amount"]
[1756525432997,2.7891563,205.7,205.67,5.62157916]
[1756525433199,7.45,205.69,205.67,5.62157916]
[1756525434397,10.2391563,205.69,205.63,7.72]
[1756525434593,7.45,205.69,205.66,5.62157916]
[1756525434798,7.45,205.69,205.67,5.62157916]
[1756525435000,10.2391563,205.7,205.67,5.62157916]
[1756525435302,10.2391563,205.7,205.59,7.72]
[1756525435502,23.82,205.74,205.66,7.72]
[1756525435704,2.7891563,205.71,205.69,5.62157916]
[1756525436005,2.7891563,205.71,205.69,13.34157916]
[1756525438094,5.41032862,205.8,205.7,13.34157916]
[1756525438295,2.7891563,205.74,205.64,7.72]
[1756525438501,10.2391563,205.74,205.71,13.34157916]
[1756525439002,10.2391563,205.74,205.71,7.72]
[1756525439401,2.7891563,205.74,205.64,7.72]
[1756525439601,2.7891563,205.74,205.72,7.72]
[1756525440699,2.7891563,205.74,205.64,4.3759]
[1756525440700,2.7891563,205.74,205.65,7.72]
[1756525441006,2.7891563,205.74,205.73,5.62157916]
[1756525441201,2.7891563,205.74,205.73,13.34157916]
[1756525442304,7.45,205.78,205.73,13.34157916]
[1756525442610,2.7891563,205.77,205.75,13.34157916]
[1756525443404,2.7891563,205.77,205.75,5.62157916]
[1756525443810,10.2391563,205.8,205.76,13.34157916]
[1756525444008,3.37507164,205.79,205.7,7.72]
[1756525444311,3.37507164,205.79,205.69,2.7891563]
[1756525444312,2.7891563,205.8,205.78,5.62157916]
[1756525444509,3.37580016,205.79,205.78,13.34157916]
[1756525444704,3.37580016,205.79,205.78,7.72]
[1756525445110,3.37580016,205.79,205.78,13.34157916]
[1756525445311,10.2391563,205.83,205.79,7.72]
[1756525445612,3.37629485,205.82,205.8,7.72]
[1756525445912,10.2391563,205.83,205.8,7.72]
[1756525446112,3.37597349,205.82,205.8,7.72]
[1756525446313,10.2391563,205.83,205.73,7.72]
[1756525446514,3.37620179,205.82,205.79,13.34157916]
[1756525446712,3.37622919,205.81,205.79,13.34157916]
[1756525446906,7.45,205.82,205.79,7.72]
[1756525447110,3.37622919,205.81,205.7,7.18]
[1756525447408,7.25,205.82,205.78,5.62157916]
[1756525447616,3.37656361,205.81,205.78,12.80157916]
[1756525447809,7.25,205.82,205.78,12.80157916]
[1756525448109,7.25,205.82,205.79,12.80157916]
[1756525448415,3.37668509,205.81,205.78,5.62157916]
[1756525448619,2.7891563,205.83,205.78,5.62157916]
[1756525448815,7.25,205.81,205.78,5.62157916]
[1756525449514,7.25,205.81,205.78,12.80157916]
[1756525451111,2.7891563,205.82,205.78,5.62157916]
[1756525451317,3.37667139,205.81,205.8,7.18]
[1756525452114,2.7891563,205.85,205.81,7.18]
[1756525452314,3.37624593,205.84,205.82,12.80157916]
[1756525452513,3.37624593,205.83,205.82,12.80157916]
[1756525452816,3.37624593,205.84,205.82,12.80157916]
[1756525453017,333.81,205.89,205.83,7.18]
[1756525453018,7.25,205.89,205.83,7.18]
[1756525453212,3.37471386,205.88,205.83,7.18]
[1756525453408,10.0391563,205.93,205.87,5.62157916]
[1756525453615,10.6244068,205.92,205.88,7.18]
[1756525453918,3.3744068,205.91,205.88,7.18]
[1756525454117,7.25,205.92,205.88,7.18]
[1756525454317,3.37184929,205.91,205.88,7.18]
[1756525454518,7.25,205.92,205.88,7.18]
[1756525454709,3.37187384,205.91,205.88,7.18]
[1756525454913,7.25,205.92,205.88,7.18]
[1756525455215,5.41032862,205.99,205.88,7.18]
[1756525455418,7.25,205.99,205.93,5.62157916]
[1756525455721,3.36885062,205.98,205.94,5.62157916]
[1756525455914,3.36885062,205.97,205.94,12.80157916]
[1756525456123,8.09523463,205.99,205.95,12.80157916]
[1756525456621,8.09523463,205.99,205.95,7.18]
[1756525456813,326.68,206.01,205.97,7.18]
[1756525457012,3.36449077,206.0,205.97,7.18]
[1756525457215,326.68,206.01,205.97,7.18]
[1756525457521,326.68,206.01,205.98,7.18]
[1756525459020,333.93,206.01,205.98,7.18]
[1756525459620,333.93,206.01,205.94,7.18]
[1756525459814,333.93,206.01,205.97,5.62157916]
[1756525459815,326.68,206.01,205.97,5.62157916]
[1756525460121,7.25,206.0,205.96,5.62157916]
[1756525460317,330.31422672,206.01,205.96,5.62157916]
[1756525460522,7.25,206.0,205.97,5.62157916]
[1756525462724,7.25,206.0,205.94,7.18]
[1756525462926,7.25,206.0,205.97,5.62157916]
[1756525463222,7.25,205.97,205.89,7.18]
[1756525463420,10.0391563,205.95,205.93,5.62157916]
[1756525463625,10.0391563,205.95,205.89,7.18]
[1756525463828,10.0391563,205.95,205.93,5.62157916]
[1756525464125,10.0391563,205.95,205.89,7.18]
[1756525464424,10.0391563,205.95,205.93,5.62157916]
[1756525464825,10.0391563,205.95,205.89,7.18]
[1756525465026,10.0391563,205.95,205.93,5.62157916]
[1756525465425,10.0391563,205.95,205.89,7.18]
[1756525465620,10.0391563,205.95,205.93,5.62157916]
[1756525466125,10.0391563,205.95,205.89,7.18]
[1756525466323,10.0391563,205.95,205.93,5.62157916]
[1756525466821,10.0391563,205.95,205.89,7.18]
[1756525467018,10.0391563,205.95,205.93,5.62157916]
[1756525467223,10.0391563,205.95,205.89,7.18]
[1756525467424,10.0391563,205.95,205.93,5.62157916]
[1756525467626,7.25,205.95,205.89,7.18]
[1756525467826,7.25,205.95,205.92,5.62157916]
[1756525468121,130.7491563,205.96,205.92,5.62157916]
[1756525468326,2.7891563,205.93,205.81,7.18]
[1756525468531,127.86,205.92,205.9,5.62157916]
[1756525473933,135.11,205.92,205.9,5.62157916]
[1756525475427,2.7891563,205.97,205.91,5.62157916]
[1756525475732,7.25,205.95,205.93,5.62157916]
[1756525476129,7.25,205.95,205.91,7.18]
[1756525476429,7.25,205.95,205.93,5.62157916]
[1756525476828,7.25,205.95,205.91,7.18]
[1756525477031,7.25,205.95,205.93,5.62157916]
[1756525477332,7.25,205.95,205.91,7.18]
[1756525477632,7.25,205.95,205.93,5.62157916]
[1756525478029,127.7,205.96,205.94,5.62157916]
[1756525478225,127.7,205.96,205.95,5.62157916]
[1756525478430,127.7,205.96,205.95,13.20157916]
[1756525479533,337.63422672,206.01,205.95,13.20157916]
[1756525479833,7.32,205.99,205.95,7.58]
[1756525480034,7.32,205.99,205.97,5.62157916]
[1756525480233,7.32,205.99,205.95,7.58]
[1756525480433,7.32,205.99,205.97,5.62157916]
[1756525480834,7.32,205.99,205.95,7.58]
[1756525481028,7.32,205.99,205.97,5.62157916]
[1756525481233,7.32,205.99,205.95,7.58]
[1756525481535,7.32,205.99,205.97,5.62157916]
[1756525481734,7.32,205.99,205.95,7.58]
[1756525481936,7.32,205.99,205.97,5.62157916]
[1756525482136,7.32,205.99,205.95,7.58]
[1756525482335,7.32,205.99,205.97,5.62157916]
[1756525482728,7.32,205.99,205.9,2.7891563]
[1756525482934,7.32,205.94,205.82,2.7891563]
[1756525483233,7.32,205.92,205.91,5.62157916]
[1756525483434,97.82,205.92,205.91,5.62157916]
[1756525484138,127.56,205.92,205.91,5.62157916]
[1756525486639,134.88,205.92,205.91,5.62157916]
[1756525487838,134.88,205.92,205.79,7.58]
[1756525487839,4.96,205.91,205.79,7.58]
[1756525488035,2.7891563,205.89,205.79,7.58]
[1756525488235,130.84864227,205.88,205.79,7.58]
[1756525488538,127.48,205.88,205.79,7.58]
[1756525489140,3.37139458,205.87,205.79,7.58]
[1756525489441,127.48,205.88,205.79,7.58]
[1756525489640,132.44,205.88,205.79,7.58]
[1756525490129,3.37280325,205.87,205.79,7.58]
[1756525490332,132.44,205.88,205.79,7.58]
[1756525490529,3.37285675,205.87,205.79,7.58]
[1756525490731,3.37285675,205.86,205.79,7.58]
[1756525490935,132.44,205.88,205.79,7.58]
[1756525491128,3.37296381,205.87,205.79,7.58]
[1756525491334,3.37296381,205.86,205.79,7.58]
[1756525491534,132.44,205.88,205.79,7.58]
[1756525491839,3.37363515,205.87,205.79,7.58]
[1756525492140,3.37363515,205.86,205.79,7.58]
[1756525492438,132.44,205.88,205.79,7.58]
[1756525492638,3.37470698,205.87,205.79,7.58]
[1756525492839,132.36,205.88,205.79,7.58]
[1756525493136,4.96,205.92,205.79,7.58]
[1756525493336,127.4,205.9,205.79,7.58]
[1756525493536,3.37575282,205.89,205.79,7.58]
[1756525493739,3.37575282,205.88,205.79,7.58]
[1756525494037,127.4,205.9,205.79,7.58]
[1756525494234,7.7491563,205.92,205.79,7.58]
[1756525494430,130.77693113,205.91,205.79,7.58]
[1756525494632,3.37693113,205.9,205.79,7.58]
[1756525494834,127.4,205.91,205.79,7.58]
[1756525495031,3.37693089,205.9,205.79,7.58]
[1756525495237,127.4,205.91,205.79,7.58]
[1756525495540,3.37863098,205.9,205.79,7.58]
[1756525495741,127.4,205.91,205.79,11.9526]
[1756525495948,3.37863098,205.9,205.8,7.58]
[1756525496135,127.4,205.91,205.8,7.58]
[1756525496339,3.38039112,205.9,205.8,7.58]
[1756525496540,127.4,205.91,205.8,7.58]
[1756525496845,3.380391,205.9,205.8,7.58]
[1756525497046,127.4,205.91,205.8,7.58]
[1756525497251,3.38185202,205.9,205.8,7.58]
[1756525497442,127.4,205.91,205.8,7.58]
[1756525497642,4.96,205.89,205.8,7.58]
[1756525500748,4.96,205.89,205.81,4.3723]
[1756525500945,7.7491563,205.89,205.82,7.58]
[1756525501144,3.38273305,205.88,205.82,7.58]
[1756525501345,7.7491563,205.89,205.82,7.58]
[1756525501550,3.3827205,205.88,205.82,7.58]
[1756525501844,7.7491563,205.89,205.82,7.58]
[1756525502052,3.38251821,205.88,205.82,7.58]
[1756525502251,7.7491563,205.89,205.82,7.58]
[1756525502453,3.38248235,205.88,205.82,7.58]
[1756525502652,7.7491563,205.89,205.82,7.58]
[1756525502853,3.38248235,205.88,205.82,7.58]
[1756525503049,4.96,205.89,205.82,7.58]
[1756525503256,4.96,205.93,205.84,7.58]
[1756525503450,3.38283622,205.92,205.84,7.58]
[1756525503648,64.36,205.95,205.88,7.58]
[1756525503849,3.38221673,205.94,205.88,7.58]
[1756525504049,4.96,205.97,205.88,7.58]
[1756525507053,0.84507042,206.01,205.9,7.27]
[1756525507953,0.84507042,206.01,205.9,11.6403]
[1756525508152,4.96,206.02,205.93,7.27]
[1756525508551,4.96,206.01,205.93,7.27]
[1756525508853,2.7891563,206.0,205.93,7.27]
[1756525510455,2.7891563,206.0,205.87,2.7891563]
[1756525510655,4.96,205.96,205.88,7.27]
[1756525511053,4.96,205.9,205.82,7.27]
[1756525512750,4.96,205.87,205.75,7.27]
[1756525513152,2.7891563,205.85,205.75,7.27]
[1756525513357,2.7891563,205.82,205.75,7.27]
[1756525526275,7.7491563,205.84,205.75,7.27]
[1756525526977,4.97,205.83,205.75,7.27]
[1756525531779,2.7891563,205.81,205.75,7.27]
[1756525534285,4.97,205.8,205.71,7.27]
[1756525537380,4.94,205.87,205.73,2.7891563]
[1756525537685,17.96,205.87,205.74,7.14]
[1756525538080,4.94,205.87,205.74,7.14]
[1756525538385,4.94,205.87,205.76,2.7891563]
[1756525538586,4.94,205.87,205.77,7.14]
[1756525541084,2.7891563,205.92,205.8,7.14]
[1756525541486,2.7891563,205.92,205.82,2.7891563]
[1756525541691,2.7891563,205.92,205.83,7.14]
[1756525542384,4.94,205.91,205.83,7.14]
[1756525542587,2.7891563,205.92,205.83,7.14]
[1756525542785,4.94,205.91,205.83,7.14]
[1756525545687,2.7891563,205.92,205.83,7.14]
[1756525545890,4.94,205.88,205.8,7.14]
[1756525546192,2.7891563,205.89,205.8,7.14]
[1756525546391,4.94,205.88,205.8,7.14]
[1756525548189,7.7291563,205.92,205.8,7.14]
[1756525549888,4.94,205.91,205.8,7.14]
[1756525550792,4.94,205.88,205.8,7.14]
[1756525553194,7.7291563,205.88,205.8,7.14]
[1756525557998,2.7891563,205.88,205.8,7.14]
[1756525558194,4.94,205.87,205.8,7.14]
[1756525558591,4.94,205.84,205.75,7.14]
[1756525558791,2.7891563,205.85,205.75,7.14]
[1756525558992,84.4491563,205.85,205.75,7.14]
[1756525559194,4.94,205.81,205.75,7.14]
[1756525559892,2.7891563,205.82,205.75,7.14]
[1756525560193,8.19948492,205.88,205.75,7.14]
[1756525560194,4.94,205.85,205.75,7.14]
[1756525560394,4.94,205.85,205.77,7.14]
[1756525560888,3.47362405,205.84,205.77,7.14]
[1756525561085,4.94,205.85,205.77,7.14]
[1756525561086,3.47362405,205.83,205.77,7.14]
[1756525561286,4.94,205.81,205.7,2.7891563]
[1756525561486,3.47362405,205.8,205.71,7.14]
[1756525562600,2.7891563,205.85,205.74,7.14]
[1756525562794,8.41328307,205.84,205.74,7.14]
[1756525562999,3.47328307,205.83,205.74,7.14]
[1756525563198,6.26243937,205.82,205.74,7.14]
[1756525563395,3.47328307,205.81,205.74,7.14]
[1756525563699,3.47328307,205.8,205.74,7.14]
[1756525563894,3.47328307,205.79,205.71,7.14]
[1756525564100,2.7891563,205.85,205.74,7.14]
[1756525564302,3.47327108,205.84,205.74,7.14]
[1756525564499,3.47327108,205.83,205.74,7.14]
[1756525564695,3.47327108,205.82,205.74,7.14]
[1756525564897,3.47327108,205.81,205.74,7.14]
[1756525565095,4.94,205.86,205.74,7.14]
[1756525565096,3.47327108,205.8,205.74,7.14]
[1756525565297,4.94,205.86,205.74,7.14]
[1756525565596,3.47322658,205.85,205.74,7.14]
[1756525565796,3.47322658,205.84,205.74,7.14]
[1756525566100,3.47322658,205.83,205.74,7.14]
[1756525566296,3.47322658,205.82,205.74,7.14]
[1756525566602,3.47322658,205.81,205.74,7.14]
[1756525566795,3.47322658,205.8,205.74,7.14]
[1756525567103,4.94,205.83,205.74,7.14]
[1756525567398,3.47317587,205.82,205.74,7.14]
[1756525567600,3.47317587,205.81,205.74,7.14]
[1756525567800,3.47317587,205.8,205.74,7.14]
[1756525567998,4.94,205.83,205.74,7.14]
[1756525568196,3.47322745,205.82,205.74,7.14]
[1756525568397,3.47322745,205.81,205.74,7.14]
[1756525568591,3.47322745,205.8,205.74,7.14]
[1756525568793,3.47322745,205.79,205.72,7.55]
[1756525569000,4.94,205.83,205.72,7.55]
[1756525569200,3.47313698,205.82,205.72,7.55]
[1756525569400,3.47313698,205.81,205.72,7.55]
[1756525569606,3.47313698,205.8,205.72,7.55]
[1756525569796,3.47313698,205.79,205.72,7.55]
[1756525569996,4.94,205.83,205.72,7.55]
[1756525570199,3.4731466,205.82,205.72,7.55]
[1756525570401,3.4731466,205.81,205.72,7.55]
[1756525570600,3.4731466,205.8,205.72,7.55]
[1756525570897,4.94,205.83,205.72,7.55]
[1756525571100,3.47307129,205.82,205.72,7.55]
[1756525571301,3.47307129,205.81,205.72,7.55]
[1756525571497,3.47307129,205.8,205.72,7.55]
[1756525571708,4.99,205.88,205.78,7.55]
[1756525572004,3.47229921,205.87,205.78,7.55]
[1756525572302,3.47229921,205.86,205.78,7.55]
[1756525572503,3.47229921,205.85,205.78,7.55]
[1756525572705,3.47229921,205.84,205.78,7.55]
[1756525572906,4.99,205.88,205.78,7.55]
[1756525573102,3.47207651,205.87,205.78,7.55]
[1756525573302,3.47207651,205.86,205.78,7.55]
[1756525573505,3.47207651,205.85,205.78,7.55]
[1756525573706,3.47207651,205.84,205.78,7.55]
[1756525573907,4.99,205.88,205.78,7.55]
[1756525574206,3.47206183,205.87,205.78,7.55]
[1756525574406,3.47206183,205.86,205.78,7.55]
[1756525574607,3.47206183,205.85,205.78,7.55]
[1756525574799,3.47206183,205.84,205.78,7.55]
[1756525574997,3.47206183,205.83,205.78,7.55]
[1756525575201,4.99,205.86,205.78,7.55]
[1756525575401,3.4722411,205.85,205.78,7.55]
[1756525575603,3.4722411,205.84,205.78,7.55]
[1756525575903,3.4722411,205.83,205.77,2.7891563]
[1756525576101,4.99,205.89,205.78,7.55]
[1756525576408,3.47216108,205.88,205.78,7.55]
[1756525576610,3.47216108,205.87,205.78,7.55]
[1756525576906,3.47216108,205.86,205.8,2.7891563]
[1756525577104,7.7791563,205.93,205.83,2.7891563]
[1756525577305,3.47162586,205.92,205.84,7.55]
[1756525577508,3.47162586,205.91,205.84,7.55]
[1756525577805,3.47162586,205.9,205.86,2.7891563]
[1756525578006,3.47162586,205.89,205.87,7.55]
[1756525578211,331.53,205.96,205.87,7.55]
[1756525578506,3.46981307,205.95,205.87,7.55]
[1756525578707,3.46981307,205.94,205.87,7.55]
[1756525579003,331.53,205.96,205.87,7.55]
[1756525589417,457.39,205.96,205.87,7.55]
[1756525590816,4.99,205.95,205.87,7.55]
[1756525592019,130.79,205.95,205.87,7.55]
[1756525593119,4.99,205.95,205.87,7.55]
[1756525595819,4.99,206.05,205.94,7.55]
[1756525596019,4.99,206.04,205.94,7.55]
[1756525596822,104.48,206.05,205.94,7.55]
[1756525597524,4.95,206.04,205.94,7.55]
[1756525597725,104.48,206.05,205.94,7.55]
[1756525598526,4.95,206.04,205.94,7.55]
[1756525598730,104.48,206.05,205.94,7.55]
[1756525598924,4.95,206.04,205.94,7.55]
[1756525599127,104.48,206.05,205.94,7.55]
[1756525599326,4.95,206.04,205.94,7.55]
[1756525599524,104.48,206.05,205.94,7.55]
[1756525599724,4.95,206.04,205.94,7.55]
[1756525599924,104.48,206.05,205.94,7.55]
[1756525600128,104.48,206.05,205.93,2.7891563]
[1756525600129,4.95,206.02,205.9,2.7891563]
[1756525601022,2.7891563,206.03,205.91,7.5]
[1756525601423,4.95,206.02,205.91,7.5]
[1756525601622,2.7891563,206.03,205.91,7.5]
[1756525602023,4.95,205.99,205.91,7.5]
[1756525602226,2.7891563,205.97,205.88,7.5]
[1756525602424,4.95,205.96,205.88,7.5]
[1756525604423,4.95,205.93,205.82,10.2891563]
[1756525605225,4.95,205.93,205.83,7.5]
[1756525606325,2.7891563,206.0,205.82,2.7891563]
[1756525606326,4.95,205.96,205.86,7.5]
[1756525606732,4.95,205.96,205.88,2.7891563]
[1756525606931,4.95,205.96,205.89,7.5]
[1756525608231,4.95,205.96,205.84,4.3716]
[1756525608232,4.95,205.97,205.85,2.7891563]
[1756525608430,4.95,205.94,205.85,2.7891563]
[1756525608824,4.95,205.94,205.85,7.5]
[1756525609733,2.7891563,205.91,205.81,7.5]
[1756525609934,4.95,205.9,205.81,7.5]
[1756525610133,2.7891563,205.91,205.81,7.5]
[1756525610134,2.7891563,205.88,205.81,7.5]
[1756525610334,4.95,205.87,205.81,7.5]
[1756525611533,4.95,205.87,205.74,2.7891563]
[1756525611734,4.95,205.87,205.75,7.5]
[1756525612127,2.7891563,205.85,205.75,7.5]
[1756525612337,4.95,205.84,205.75,7.5]
[1756525612933,4.95,205.81,205.75,7.5]
[1756525613427,27.5391563,205.87,205.75,7.5]
[1756525613632,7.7391563,205.87,205.77,7.5]
[1756525614039,4.95,205.87,205.77,7.5]
[1756525615139,4.95,205.87,205.8,7.5]
[1756525618236,2.7891563,205.87,205.74,7.5]
[1756525618440,4.95,205.86,205.74,7.5]
[1756525620639,51.87,205.86,205.74,7.5]
[1756525621743,4.95,205.86,205.74,7.5]
[1756525621942,4.95,205.86,205.77,7.5]
[1756525624546,4.95,205.95,205.78,2.7891563]
[1756525624745,4.95,205.9,205.82,7.5]
[1756525627751,4.94,205.94,205.85,7.2]
[1756525629350,326.46,205.97,205.88,7.2]
[1756525633862,326.46,205.97,205.91,7.2]
[1756525634653,130.1,205.98,205.91,7.2]
[1756525636662,130.1,205.98,205.87,7.2]
[1756525636663,127.9491563,205.98,205.87,7.2]
[1756525636963,4.94,205.97,205.87,7.2]
[1756525637157,4.94,205.94,205.87,7.2]
[1756525638056,4.94,205.94,205.72,5.2985308]
[1756525638057,2.7891563,205.92,205.83,7.2]
[1756525638263,4.94,205.91,205.83,7.2]
[1756525639266,27.8891563,205.92,205.83,7.2]
[1756525639567,4.98,205.91,205.83,7.2]
[1756525641666,4.98,205.91,205.78,9.9891563]
[1756525641968,4.98,205.88,205.78,7.2]
[1756525642262,2.7891563,205.89,205.78,7.2]
[1756525642570,4.98,205.88,205.78,7.2]
[1756525643762,7.7691563,205.86,205.78,7.2]
[1756525644857,2.7891563,205.86,205.78,7.2]
[1756525645056,4.98,205.85,205.75,7.2]
[1756525645256,4.98,205.82,205.75,7.2]
[1756525653578,2.7891563,205.83,205.75,7.2]
[1756525656578,4.98,205.85,205.76,7.2]
[1756525657575,4.97,205.89,205.78,2.7891563]
[1756525657779,4.97,205.89,205.79,7.43]
[1756525658281,4.97,205.89,205.82,7.43]
[1756525665084,4.97,205.9,205.82,7.43]
[1756525665886,7.7591563,205.94,205.84,7.43]
[1756525666286,4.97,205.84,205.73,7.43]
[1756525667587,2.7891563,205.82,205.73,7.43]
[1756525668388,4.97,205.84,205.73,7.43]
[1756525670792,4.97,205.84,205.74,7.43]
[1756525671185,2.7891563,205.85,205.75,7.43]
[1756525671386,2.7891563,205.85,205.75,11.8035]
[1756525671692,2.7891563,205.85,205.76,7.43]
[1756525671883,7.7591563,205.88,205.76,7.43]
[1756525672486,4.97,205.88,205.78,7.43]
[1756525674193,2.7891563,205.91,205.79,4.3727]
[1756525674493,7.7591563,205.91,205.8,7.43]
[1756525674692,7.7591563,205.91,205.81,7.43]
[1756525675597,4.97,205.91,205.81,7.43]
[1756525676592,7.7591563,205.91,205.81,7.43]
[1756525676794,4.97,205.9,205.81,7.43]
[1756525677394,2.7891563,205.88,205.81,7.43]
[1756525677696,4.97,205.88,205.81,7.43]
[1756525680398,2.7891563,205.9,205.81,7.43]
[1756525680598,4.97,205.92,205.82,7.43]
[1756525681796,7.7591563,205.97,205.85,7.43]
[1756525683298,7.7591563,205.97,205.86,2.7891563]
[1756525683500,7.7591563,205.97,205.87,7.43]
[1756525684702,4.97,205.96,205.87,7.43]
[1756525684897,2.7891563,205.94,205.82,7.43]
[1756525685202,4.97,205.9,205.82,7.43]
[1756525685993,2.7891563,205.85,205.74,7.43]
[1756525686199,4.97,205.78,205.69,7.43]
[1756525687498,2.7891563,205.76,205.62,5.2985308]
[1756525687697,2.7891563,205.76,205.59,66.79868861]
[1756525687698,2.7891563,205.73,205.63,7.67]
[1756525688294,4.99,205.69,205.58,10.4591563]
[1756525688494,2.7891563,205.67,205.58,7.67]
[1756525689300,9.48691116,205.69,205.58,7.67]
[1756525695704,4.99,205.65,205.52,124.48]
[1756525695903,4.99,205.65,205.53,7.67]
[1756525697306,4.99,205.62,205.53,7.67]
[1756525700009,5.0,205.59,205.48,7.67]
[1756525700809,4.49691116,205.62,205.48,7.67]
[1756525701009,5.0,205.63,205.48,7.67]
[1756525701210,9.49691116,205.63,205.49,7.67]
[1756525702111,326.72,205.72,205.51,4.49691116]
[1756525702112,4.49691116,205.66,205.51,4.49691116]
[1756525702315,4.49691116,205.66,205.53,7.67]
[1756525702820,4.49691116,205.66,205.54,7.67]
[1756525703214,5.0,205.67,205.54,7.67]
[1756525703916,5.0,205.67,205.56,7.67]
[1756525704824,5.0,205.67,205.58,7.67]
[1756525709128,5.0,205.71,205.59,7.67]
[1756525709321,5.0,205.71,205.61,2.80902886]
[1756525709527,5.0,205.71,205.62,7.67]
[1756525711936,2.80902886,205.72,205.62,7.67]
[1756525712136,0.8463035,205.74,205.64,2.80902886]
[1756525712329,0.8463035,205.74,205.65,7.67]
[1756525719039,7.79902886,205.72,205.59,7.18592886]
[1756525719243,2.80902886,205.69,205.6,7.25]
[1756525719532,4.99,205.68,205.6,7.25]
[1756525726941,4.99,205.65,205.56,7.25]
[1756525727536,2.80902886,205.64,205.56,7.25]
[1756525728038,4.99,205.6,205.56,7.25]
[1756525728242,2.80902886,205.61,205.51,7.25]
[1756525728243,7.79902886,205.61,205.51,7.25]
[1756525732547,2.80902886,205.59,205.49,7.25]
[1756525733042,4.99,205.6,205.49,7.25]
[1756525733243,7.79902886,205.6,205.49,7.25]
[1756525733447,4.99,205.6,205.51,7.25]
[1756525735945,2.80902886,205.59,205.51,7.25]
[1756525736149,4.99,205.58,205.48,7.25]
[1756525736740,2.80902886,205.56,205.48,7.25]
[1756525738047,7.79902886,205.56,205.48,7.25]
[1756525739153,4.99,205.56,205.48,7.25]
[1756525739349,4.99,205.55,205.48,7.25]
[1756525740854,4.99,205.52,205.42,7.25]
[1756525742850,2.80902886,205.5,205.42,7.25]
[1756525743053,2.80902886,205.5,205.39,7.25]
[1756525743259,7.79902886,205.49,205.39,7.25]
[1756525743646,2.80902886,205.52,205.4,7.25]
[1756525744047,4.99,205.51,205.43,7.25]
[1756525744248,4.99,205.48,205.39,7.25]
[1756525746649,2.80902886,205.46,205.39,7.25]
[1756525748158,2.80902886,205.45,205.39,7.25]
[1756525750461,7.79902886,205.45,205.39,7.25]
[1756525750958,7.79902886,205.42,205.31,7.2]
[1756525751560,4.99,205.42,205.31,7.2]
[1756525752160,7.79902886,205.42,205.31,7.2]
[1756525752651,7.79902886,205.42,205.31,4.3829]
[1756525752955,7.79902886,205.42,205.32,7.2]
[1756525755356,4.99,205.42,205.32,7.2]
[1756525756353,2.80902886,205.5,205.3,7.19212886]
[1756525756354,7.79902886,205.47,205.34,7.2]
[1756525756551,7.79902886,205.47,205.36,2.80902886]
[1756525756751,7.79902886,205.47,205.37,7.2]
[1756525757057,7.79902886,205.5,205.37,7.2]
[1756525757659,7.79902886,205.5,205.39,2.80902886]
[1756525757958,7.79902886,205.5,205.42,7.2]
[1756525759857,4.99,205.5,205.42,7.2]
[1756525761156,4.99,205.5,205.42,4.3805]